bitfinex-derivatives/quotes_SOLF0:USTF0_20250911
["timestamp","ask_amount","ask_price","bid_price","bid_amount"]
[1757588456660,6.71998384,225.57,225.48,7.32]
[1757588456860,3.4254699,225.56,225.48,7.32]
[1757588457059,6.71998384,225.57,225.48,7.32]
[1757588457260,3.4254699,225.56,225.48,7.32]
[1757588457455,6.71998384,225.57,225.48,7.32]
[1757588457651,3.42367981,225.56,225.48,7.32]
[1757588457855,4.98,225.57,225.48,7.32]
[1757588458057,3.42367981,225.56,225.48,7.32]
[1757588458258,6.71998384,225.57,225.48,7.32]
[1757588460557,0.0280029,225.58,225.48,7.32]
[1757588460762,0.0280029,225.58,225.46,1.73998384]
[1757588460763,0.0280029,225.58,225.53,7.48]
[1757588462167,4.98,225.68,225.56,7.48]
[1757588462367,6.74132576,225.67,225.56,7.48]
[1757588462563,3.40885706,225.66,225.56,7.48]
[1757588462869,4.98,225.68,225.56,7.48]
[1757588463166,3.40897455,225.67,225.56,7.48]
[1757588463362,4.98,225.68,225.56,7.48]
[1757588463561,0.02943006,225.64,225.56,7.48]
[1757588464864,0.02943006,225.64,225.59,7.48]
[1757588467477,5.01,225.78,225.6,0.44]
[1757588467676,3.40796889,225.76,225.62,7.48]
[1757588467878,5.01,225.78,225.62,3.68458794]
[1757588468078,3.40752866,225.76,225.63,7.48]
[1757588468380,5.01,225.78,225.63,7.48]
[1757588468670,5.01,225.78,225.68,7.48]
[1757588469274,3.40705534,225.77,225.68,7.48]
[1757588469479,5.01,225.75,225.67,0.03081822]
[1757588469682,5.01,225.73,225.67,0.03081822]
[1757588469880,3.40726457,225.72,225.67,0.03081822]
[1757588470074,5.01,225.73,225.64,7.48]
[1757588470275,5.01,225.71,225.67,0.03103692]
[1757588470477,5.01,225.73,225.67,0.03103692]
[1757588471879,3.40730174,225.72,225.67,0.03103692]
[1757588472077,0.03233814,225.72,225.67,0.03103692]
[1757588472688,5.01,225.71,225.67,0.03103692]
[1757588472883,0.03233814,225.72,225.67,0.03103692]
[1757588473384,5.01,225.7,225.67,0.03103692]
[1757588473585,5.01,225.71,225.67,0.03103692]
[1757588474180,0.03233814,225.72,225.67,0.03103692]
[1757588474376,3.40757083,225.71,225.67,0.03103692]
[1757588474583,0.03233814,225.72,225.67,0.03103692]
[1757588474784,2.72218979,225.7,225.67,0.03103692]
[1757588474985,5.01,225.68,225.67,0.03103692]
[1757588476186,5.45,225.68,225.6,7.48]
[1757588476488,5.01,225.68,225.6,7.48]
[1757588477387,0.02890984,225.66,225.6,7.48]
[1757588477585,5.01,225.65,225.51,3.68458794]
[1757588477789,2.75109963,225.66,225.62,0.02827444]
[1757588477986,5.01,225.65,225.57,7.48]
[1757588478290,5.01,225.65,225.59,0.02803911]
[1757588479188,2.72218979,225.62,225.59,0.02803911]
[1757588479389,5.01,225.61,225.59,0.02803911]
[1757588479590,3.41023585,225.6,225.51,7.48]
[1757588479889,5.01,225.61,225.51,7.48]
[1757588480088,3.41023869,225.6,225.51,7.48]
[1757588480294,5.01,225.61,225.51,7.48]
[1757588480691,0.03079937,225.58,225.51,7.48]
[1757588482297,0.03079937,225.58,225.51,69.48]
[1757588482598,0.03079937,225.58,225.52,7.48]
[1757588489411,0.03079937,225.58,225.52,7.92]
[1757588489610,0.03079937,225.58,225.52,11.60458794]
[1757588489808,5.01,225.66,225.53,7.52]
[1757588490009,5.01,225.66,225.53,7.55161702]
[1757588490911,0.03189787,225.62,225.53,7.55161702]
[1757588491210,0.03189787,225.62,225.54,7.52]
[1757588493206,0.03189787,225.62,225.54,11.20623327]
[1757588493907,0.03189787,225.62,225.54,3.68623327]
[1757588494103,0.03189787,225.62,225.55,7.52]
[1757588506320,5.05189787,225.62,225.55,7.52]
[1757588506514,7.77408766,225.62,225.55,7.52]
[1757588506716,5.02,225.57,225.53,0.03161702]
[1757588507324,5.05271538,225.57,225.53,0.03161702]
[1757588507719,5.02,225.56,225.53,0.03161702]
[1757588508317,0.03271538,225.57,225.53,0.03161702]
[1757588508520,5.02,225.56,225.53,0.03161702]
[1757588508825,0.03271538,225.57,225.53,0.03161702]
[1757588509225,5.02,225.56,225.53,0.03161702]
[1757588510329,0.03271538,225.57,225.53,0.03161702]
[1757588511226,5.02,225.56,225.53,0.03161702]
[1757588511630,0.03271538,225.57,225.53,0.03161702]
[1757588511927,5.02,225.56,225.53,0.03161702]
[1757588513132,0.03271538,225.57,225.54,7.52]
[1757588513532,5.05271538,225.57,225.53,0.03161702]
[1757588513733,0.03271538,225.57,225.53,0.03161702]
[1757588513932,5.02,225.56,225.53,0.03161702]
[1757588520349,0.03271538,225.57,225.53,0.03161702]
[1757588520550,5.02,225.56,225.53,0.03161702]
[1757588521149,0.03271538,225.57,225.53,0.03161702]
[1757588521345,5.02,225.56,225.53,0.03161702]
[1757588521545,0.03271538,225.57,225.53,0.03161702]
[1757588522050,5.02,225.56,225.53,0.03161702]
[1757588522449,5.02,225.54,225.53,0.03161702]
[1757588524155,5.02,225.5,225.43,7.46]
[1757588525257,0.02904849,225.49,225.43,7.46]
[1757588527854,5.02,225.47,225.36,7.46]
[1757588528150,5.02,225.44,225.36,7.46]
[1757588528355,5.02,225.48,225.36,7.46]
[1757588528655,0.02796558,225.44,225.38,7.46]
[1757588531049,0.02796558,225.44,225.4,7.46]
[1757588532154,0.02796558,225.44,225.39,1.74428833]
[1757588532360,0.02796558,225.44,225.4,7.46]
[1757588532655,0.02796558,225.44,225.37,1.74428833]
[1757588532861,0.02796558,225.44,225.38,7.46]
[1757588542469,1.77225391,225.44,225.38,7.46]
[1757588542673,0.02796558,225.44,225.38,7.46]
[1757588547973,6.79225391,225.44,225.38,7.46]
[1757588549773,1.74428833,225.41,225.34,6.93]
[1757588550073,1.77225391,225.44,225.34,6.93]
[1757588550273,0.02796558,225.44,225.34,6.93]
[1757588550770,0.02796558,225.44,225.35,3.69460104]
[1757588550975,0.02796558,225.44,225.36,6.93]
[1757588552776,0.02796558,225.44,225.37,6.93]
[1757588552976,1.77225391,225.44,225.37,6.93]
[1757588554472,5.02,225.43,225.37,6.93]
[1757588558975,0.02796558,225.44,225.37,6.93]
[1757588560481,0.02796558,225.44,225.39,6.93]
[1757588561384,0.02796558,225.44,225.38,6.93]
[1757588569986,4.88544605,225.55,225.44,6.93]
[1757588570179,1.74428833,225.63,225.52,6.93]
[1757588570378,5.03,225.65,225.53,6.93]
[1757588570591,5.07588916,225.64,225.53,6.93]
[1757588570796,1.74428833,225.64,225.56,10.62460104]
[1757588571092,0.03137932,225.6,225.57,4.0362231]
[1757588571287,0.03137932,225.6,225.58,10.9662231]
[1757588571486,0.03137932,225.6,225.59,10.9662231]
[1757588571897,0.03137932,225.6,225.59,10.9609388]
[1757588574095,7.51,225.7,225.6,6.93]
[1757588574396,7.51,225.7,225.62,6.93]
[1757588574599,7.51,225.7,225.63,4.0309388]
[1757588574795,7.51,225.7,225.64,4.0309388]
[1757588575000,7.51,225.7,225.65,4.0309388]
[1757588575200,122.77169704,225.84,225.67,6.93]
[1757588575201,7.51,225.75,225.67,6.93]
[1757588575388,1.74428833,225.73,225.68,4.0309388]
[1757588575593,1.74428833,225.73,225.69,4.0309388]
[1757588575796,1.74428833,225.73,225.7,4.0309388]
[1757588575996,7.51,225.72,225.71,4.0309388]
[1757588577497,6.9,225.74,225.71,4.0309388]
[1757588577796,6.9,225.74,225.72,4.0309388]
[1757588578002,6.9,225.74,225.69,6.93191082]
[1757588578200,6.9,225.74,225.7,10.97929282]
[1757588578500,6.9,225.74,225.71,4.07929282]
[1757588578705,6.9,225.74,225.7,6.9]
[1757588578706,6.9,225.74,225.72,4.07929282]
[1757588578891,6.9,225.74,225.7,6.9]
[1757588579096,6.9,225.74,225.71,4.07546507]
[1757588579296,1.74428833,225.75,225.72,4.07546507]
[1757588579498,8.64428833,225.75,225.69,0.03191082]
[1757588579696,6.9,225.74,225.7,4.07208237]
[1757588579903,6.9,225.74,225.69,0.03191082]
[1757588580202,6.9,225.74,225.7,4.07208237]
[1757588580393,6.9,225.74,225.69,6.93191082]
[1757588580598,6.9,225.74,225.7,4.07154923]
[1757588580896,8.64428833,225.75,225.69,0.03191082]
[1757588581097,6.9,225.71,225.69,0.03191082]
[1757588582003,6.9,225.71,225.59,6.9]
[1757588582303,1.74428833,225.66,225.6,4.07247093]
[1757588582598,8.64428833,225.66,225.61,10.97247093]
[1757588582803,8.64428833,225.66,225.62,4.07247093]
[1757588583003,8.64428833,225.66,225.63,4.07247093]
[1757588583200,1.77616284,225.66,225.61,6.9]
[1757588583400,6.9,225.65,225.62,4.0706911]
[1757588583602,6.9,225.65,225.63,4.0706911]
[1757588583797,6.9,225.65,225.61,6.9]
[1757588583994,6.9,225.65,225.62,4.07011688]
[1757588584196,6.9,225.64,225.56,6.9]
[1757588584398,6.9,225.64,225.57,4.0699898]
[1757588584600,0.02855575,225.62,225.59,6.9]
[1757588584899,0.02855575,225.62,225.6,10.9699898]
[1757588585093,0.02855575,225.62,225.61,10.9699898]
[1757588585599,9.62321088,225.73,225.62,6.9]
[1757588585792,9.62321088,225.73,225.63,4.0699898]
[1757588585993,9.62321088,225.73,225.65,6.9]
[1757588586193,9.62321088,225.73,225.66,4.0699898]
[1757588586398,6.9,225.73,225.65,6.9]
[1757588586604,6.9,225.73,225.66,4.0656509]
[1757588586798,6.9,225.73,225.67,4.09779227]
[1757588587006,9.62321088,225.77,225.68,4.0656509]
[1757588587204,9.62321088,225.77,225.67,0.03214137]
[1757588587506,9.62321088,225.77,225.68,4.0639132]
[1757588587804,9.62321088,225.77,225.67,0.03214137]
[1757588588004,9.62321088,225.77,225.68,4.06270135]
[1757588588200,9.62321088,225.77,225.67,0.03214137]
[1757588588405,9.62321088,225.77,225.68,4.06124061]
[1757588588601,9.62321088,225.77,225.67,0.03214137]
[1757588588801,9.62321088,225.77,225.68,10.96124061]
[1757588589001,9.62321088,225.77,225.68,6.9]
[1757588589506,9.62321088,225.77,225.67,0.03214137]
[1757588592103,2.72321088,225.73,225.67,0.03214137]
[1757588592400,2.72321088,225.73,225.65,4.05942166]
[1757588592705,6.9,225.72,225.68,0.03294516]
[1757588594797,2.72321088,225.69,225.6,6.9]
[1757588594999,9.62321088,225.69,225.6,6.9]
[1757588596002,0.02814902,225.67,225.6,6.9]
[1757588601209,6.9,225.66,225.6,6.9]
[1757588601412,6.9,225.66,225.53,62.0]
[1757588601613,6.9,225.66,225.54,6.9]
[1757588602112,0.03357161,225.62,225.54,6.9]
[1757588610223,7.35357161,225.62,225.54,6.9]
[1757588612925,0.03357161,225.62,225.54,6.9]
[1757588623930,0.03357161,225.62,225.55,7.37]
[1757588631236,0.03357161,225.62,225.58,7.37]
[1757588632435,7.32,225.72,225.58,3.69460104]
[1757588632640,7.32,225.72,225.61,7.37]
[1757588633841,7.32,225.72,225.64,7.40116939]
[1757588640438,7.32,225.72,225.64,0.03116939]
[1757588640640,6.89,225.7,225.64,0.03116939]
[1757588642242,6.89,225.66,225.64,0.03116939]
[1757588642442,2.72321088,225.67,225.64,0.03116939]
[1757588642645,6.89,225.66,225.57,3.69460104]
[1757588642843,2.72321088,225.67,225.63,0.03228645]
[1757588643444,6.89,225.66,225.63,0.03228645]
[1757588643640,2.75547997,225.67,225.63,0.03228645]
[1757588643837,6.89,225.66,225.63,0.03228645]
[1757588646444,8.63324074,225.64,225.63,0.03228645]
[1757588656149,8.63324074,225.64,225.55,3.69460104]
[1757588656350,1.74324074,225.64,225.54,11.03460104]
[1757588656555,6.89,225.6,225.54,7.34]
[1757588657348,0.03218597,225.59,225.54,7.34]
[1757588657547,6.89,225.58,225.54,7.34]
[1757588657748,6.89,225.58,225.51,11.03460104]
[1757588658553,6.89,225.58,225.51,7.34]
[1757588660951,6.89,225.58,225.51,11.03460104]
[1757588662552,0.03218597,225.59,225.51,3.69460104]
[1757588662749,0.03218597,225.59,225.52,7.34]
[1757588663650,0.03218597,225.59,225.52,11.03460104]
[1757588663844,0.03218597,225.59,225.52,3.69460104]
[1757588664044,0.03218597,225.59,225.53,7.34]
[1757588664354,0.03218597,225.59,225.55,7.34]
[1757588665354,0.03218597,225.59,225.56,7.34]
[1757588665554,0.03218597,225.59,225.55,3.69460104]
[1757588665854,0.03218597,225.59,225.56,7.34]
[1757588666957,0.03218597,225.59,225.54,3.69460104]
[1757588666958,0.03218597,225.59,225.55,7.34]
[1757588667350,0.03218597,225.59,225.55,7.16]
[1757588667555,7.47,225.58,225.54,7.16]
[1757588667956,7.47,225.58,225.53,7.16]
[1757588668456,7.47,225.58,225.52,3.69460104]
[1757588668660,7.47,225.58,225.53,7.16]
[1757588669155,0.03218597,225.59,225.53,7.16]
[1757588670662,7.47,225.58,225.51,3.69460104]
[1757588670857,7.47,225.58,225.48,12.10441822]
[1757588670858,7.47,225.58,225.5,3.69460104]
[1757588671359,1.74324074,225.58,225.48,10.85460104]
[1757588671566,7.47,225.57,225.48,10.85460104]
[1757588673263,7.47,225.57,225.48,7.16]
[1757588675364,7.47,225.57,225.46,3.69460104]
[1757588675566,7.47,225.54,225.45,10.85460104]
[1757588676058,0.02804695,225.52,225.45,10.85460104]
[1757588676766,1.77128769,225.52,225.45,7.16]
[1757588677267,7.47,225.51,225.45,7.16]
[1757588677661,0.02804695,225.52,225.45,7.16]
[1757588678565,7.49804695,225.52,225.45,7.16]
[1757588681963,0.02804695,225.52,225.45,7.16]
[1757588683063,1.77128769,225.52,225.45,7.16]
[1757588683468,7.47,225.51,225.45,7.16]
[1757588684568,1.74324074,225.49,225.4,10.85460104]
[1757588684865,7.47,225.48,225.4,7.16]
[1757588685070,0.02957825,225.47,225.4,7.16]
[1757588691476,7.47,225.46,225.4,7.16]
[1757588694265,9.21324074,225.46,225.35,7.16]
[1757588694876,0.02921146,225.43,225.35,7.16]
[1757588697278,0.02921146,225.43,225.36,7.54]
[1757588700673,7.53,225.4,225.36,7.54]
[1757588700869,1.74324074,225.41,225.22,13.32030689]
[1757588700870,9.27324074,225.41,225.3,7.54]
[1757588701484,7.56115291,225.38,225.3,7.54]
[1757588701980,0.03115291,225.38,225.3,7.54]
[1757588709690,0.03115291,225.38,225.32,0.02887016]
[1757588710289,0.03115291,225.38,225.33,7.54]
[1757588710589,0.03115291,225.38,225.32,0.02887016]
[1757588710791,0.03115291,225.38,225.33,7.54]
[1757588711292,0.03115291,225.38,225.32,0.02887016]
[1757588712590,7.53,225.37,225.32,0.02887016]
[1757588712794,0.03115291,225.38,225.32,0.02887016]
[1757588712992,7.53,225.37,225.32,0.02887016]
[1757588713495,0.03115291,225.38,225.32,0.02887016]
[1757588713796,7.53,225.37,225.32,0.02887016]
[1757588713992,0.03115291,225.38,225.32,0.02887016]
[1757588714200,7.56115291,225.38,225.32,0.02887016]
[1757588720503,0.03115291,225.38,225.32,0.02887016]
[1757588720705,0.03115291,225.38,225.33,7.54]
[1757588721096,0.03115291,225.38,225.32,7.56887016]
[1757588722799,7.53,225.46,225.35,7.54]
[1757588724002,7.53,225.46,225.38,0.03299005]
[1757588724203,10.25927104,225.46,225.38,0.03299005]
[1757588741014,111.28,225.45,225.38,0.03299005]
[1757588741210,7.5,225.44,225.38,0.03299005]
[1757588741513,118.76,225.44,225.38,0.03299005]
[1757588741707,7.5,225.44,225.38,0.03299005]
[1757588742812,118.74,225.44,225.38,0.03299005]
[1757588744910,2.72927104,225.42,225.38,0.03299005]
[1757588745116,7.5,225.41,225.38,0.03299005]
[1757588746318,7.94,225.4,225.24,3.69444839]
[1757588746512,7.5,225.35,225.23,10.69444839]
[1757588746716,7.5,225.33,225.23,10.69444839]
[1757588747515,0.03040295,225.3,225.23,10.69444839]
[1757588747715,0.03040295,225.3,225.23,7.0]
[1757588748316,7.53040295,225.3,225.23,7.0]
[1757588754514,7.53040295,225.3,225.18,7.0]
[1757588756320,7.53040295,225.3,225.15,3.69444839]
[1757588756321,2.72927104,225.24,225.15,3.69444839]
[1757588756523,2.72927104,225.24,225.03,9.88314443]
[1757588756524,7.5,225.19,225.08,7.0]
[1757588756723,38.18,225.18,225.08,7.0]
[1757588757024,7.5,225.19,225.08,7.0]
[1757588757226,61.44,225.18,225.08,7.0]
[1757588757818,7.33,225.17,225.08,7.0]
[1757588758327,88.89,225.17,225.08,7.0]
[1757588758828,7.33,225.17,225.08,7.0]
[1757588759022,107.99,225.17,225.08,7.0]
[1757588759528,7.33,225.17,225.08,7.0]
[1757588760527,125.99509988,225.24,225.08,7.0]
[1757588760528,111.18,225.2,225.08,7.0]
[1757588760728,7.33,225.21,225.08,7.0]
[1757588764731,111.18,225.2,225.08,7.0]
[1757588764931,7.33,225.19,225.08,7.0]
[1757588765131,118.51,225.19,225.08,7.0]
[1757588765733,7.33,225.19,225.08,7.0]
[1757588766125,133.32509988,225.24,225.08,7.0]
[1757588766432,133.32509988,225.24,225.12,7.37]
[1757588767535,7.33,225.24,225.12,7.37]
[1757588769639,7.33,225.22,225.12,7.37]
[1757588770332,7.33,225.2,225.12,7.37]
[1757588777846,0.02797532,225.18,225.12,7.37]
[1757588779548,7.35797532,225.18,225.12,7.37]
[1757588786952,0.02797532,225.18,225.12,7.37]
[1757588787654,7.44,225.17,225.12,7.37]
[1757588787854,0.02797532,225.18,225.12,7.37]
[1757588788255,7.46797532,225.18,225.12,7.37]
[1757588788852,7.44,225.16,225.06,7.42]
[1757588795961,7.44,225.23,225.06,7.42]
[1757588796155,1.74986901,225.19,225.07,11.11444839]
[1757588796460,1.74986901,225.19,225.08,7.42]
[1757588798559,1.74986901,225.19,225.09,7.42]
[1757588800162,1.74986901,225.19,225.1,7.42]
[1757588801360,1.74986901,225.19,225.1,11.11444839]
[1757588802864,1.74986901,225.18,225.1,11.11444839]
[1757588803065,1.74986901,225.18,225.1,3.69444839]
[1757588803259,1.74986901,225.18,225.11,7.42]
[1757588804767,7.44,225.2,225.11,7.42]
[1757588804965,1.74986901,225.18,225.11,7.42]
[1757588806659,305.92,225.24,225.12,7.42]
[1757588806864,111.06,225.22,225.14,11.11444839]
[1757588807070,307.66986901,225.24,225.15,11.11444839]
[1757588807264,418.72986901,225.24,225.16,7.42]
[1757588807967,307.66986901,225.24,225.16,7.42]
[1757588808172,418.72986901,225.24,225.16,7.42]
[1757588808872,7.44,225.2,225.13,7.42]
[1757588809071,7.44,225.17,225.13,7.42]
[1757588809474,7.44,225.17,225.1,11.11444839]
[1757588809668,7.44,225.17,225.11,7.42]
[1757588812569,1.74986901,225.18,225.11,7.42]
[1757588812773,1.74986901,225.18,225.12,3.69444839]
[1757588813168,1.74986901,225.18,225.13,7.42]
[1757588813368,7.44,225.2,225.12,3.69444839]
[1757588813573,83.94986901,225.21,225.13,11.11444839]
[1757588813773,9.18986901,225.21,225.13,11.11444839]
[1757588815172,9.18986901,225.21,225.14,7.42]
[1757588815775,1.74986901,225.21,225.14,7.42]
[1757588815971,9.18986901,225.24,225.14,11.11444839]
[1757588816176,9.18986901,225.24,225.15,7.42]
[1757588816766,7.44,225.24,225.15,7.42]
[1757588817071,1.74986901,225.22,225.15,7.42]
[1757588818176,9.18986901,225.24,225.15,7.42]
[1757588827278,7.23,225.2,225.13,3.71923968]
[1757588827474,7.23,225.17,225.12,7.48]
[1757588827671,7.23,225.17,225.09,11.19923968]
[1757588829680,7.23,225.17,225.1,7.48]
[1757588830380,1.74986901,225.18,225.1,7.48]
[1757588830581,1.74986901,225.18,225.11,7.48]
[1757588832080,7.23,225.17,225.1,3.71923968]
[1757588833783,55.81469494,225.21,225.1,3.71923968]
[1757588834082,63.04469494,225.21,225.11,7.48]
[1757588834283,7.23,225.21,225.11,7.48]
[1757588834480,7.23,225.21,225.05,2.73469494]
[1757588834481,54.51,225.23,225.13,7.48]
[1757588835286,7.23,225.23,225.13,7.48]
[1757588835884,9.96469494,225.23,225.1,3.71923968]
[1757588836879,9.96469494,225.23,225.09,7.48]
[1757588836880,7.23,225.18,225.09,3.71923968]
[1757588837286,7.23,225.18,225.08,3.71923968]
[1757588837784,28.0,225.17,225.08,3.71923968]
[1757588837987,28.0,225.17,225.07,3.71923968]
[1757588837988,7.23,225.16,225.07,3.71923968]
[1757588840091,7.23,225.16,225.07,3.72299711]
[1757588842191,7.23,225.16,225.06,3.72299711]
[1757588843289,7.23,225.16,225.05,11.20299711]
[1757588843490,28.0,225.17,225.05,11.20299711]
[1757588844092,7.23,225.16,225.05,11.20299711]
[1757588844888,2.73469494,225.15,225.05,7.48]
[1757588845092,7.23,225.14,225.05,7.48]
[1757588846592,7.23,225.14,225.05,11.20299711]
[1757588847386,7.23,225.14,225.05,7.48]
[1757588848592,7.23,225.14,225.05,11.20299711]
[1757588848894,7.21,225.15,225.05,7.48]
[1757588849989,7.21,225.13,225.05,7.48]
[1757588859603,110.82,225.16,225.05,7.48]
[1757588859802,9.94469494,225.17,225.05,7.48]
[1757588864304,120.74469494,225.17,225.05,7.48]
[1757588865099,9.94469494,225.17,225.06,6.88]
[1757588866705,7.21,225.17,225.06,3.72299711]
[1757588867011,0.03081317,225.14,225.07,6.88]
[1757588868309,0.03081317,225.14,225.07,10.60299711]
[1757588868508,0.03081317,225.14,225.07,6.88]
[1757588868710,0.03081317,225.14,225.07,10.60299711]
[1757588869407,0.03081317,225.14,225.07,3.72299711]
[1757588869710,0.03081317,225.14,225.08,6.88]
[1757588871713,0.03081317,225.14,225.08,3.72299711]
[1757588872114,0.03081317,225.14,225.09,6.88]
[1757588872713,0.03081317,225.14,225.08,3.72299711]
[1757588873011,0.03081317,225.14,225.09,10.60299711]
[1757588873311,0.03081317,225.14,225.11,6.88]
[1757588873512,0.03081317,225.14,225.1,3.72299711]
[1757588873708,0.03081317,225.14,225.11,6.88]
[1757588874415,0.03081317,225.14,225.1,3.72299711]
[1757588874908,0.03081317,225.14,225.11,6.88]
[1757588875207,0.03081317,225.14,225.1,3.72299711]
[1757588875412,7.24081317,225.14,225.08,6.88]
[1757588875914,7.21,225.13,225.04,10.60299711]
[1757588877507,0.03081317,225.14,225.05,7.05]
[1757588877708,0.03081317,225.14,225.05,10.77299711]
[1757588877912,6.95,225.13,225.06,7.05]
[1757588878712,0.03081317,225.14,225.06,7.05]
[1757588878915,0.03081317,225.14,225.06,3.72299711]
[1757588879208,0.03081317,225.14,225.07,7.05]
[1757588879718,0.03081317,225.14,225.07,3.72299711]
[1757588879911,0.03081317,225.14,225.08,7.05]
[1757588882208,0.03081317,225.14,225.08,10.77299711]
[1757588882414,0.03081317,225.14,225.08,7.05]
[1757588883111,6.95,225.13,225.08,7.05]
[1757588883310,6.95,225.13,225.05,10.77299711]
[1757588884117,0.03001241,225.11,225.05,10.77299711]
[1757588884516,0.03001241,225.11,225.03,4.94441822]
[1757588884517,0.03001241,225.11,225.07,7.05]
[1757588885520,0.03001241,225.11,225.06,3.72299711]
[1757588885921,0.03001241,225.11,225.07,7.05]
[1757588886321,0.03001241,225.11,225.06,3.72299711]
[1757588886821,0.03001241,225.11,225.07,7.05]
[1757588887021,0.03001241,225.11,225.08,3.72299711]
[1757588887214,0.03001241,225.11,225.09,7.05]
[1757588887721,0.03001241,225.11,225.08,3.72299711]
[1757588888720,0.03001241,225.11,225.09,7.05]
[1757588888920,0.03001241,225.11,225.08,3.72299711]
[1757588889226,0.03001241,225.11,225.09,7.05]
[1757588889526,0.03001241,225.11,225.08,3.72299711]
[1757588889826,0.03001241,225.11,225.09,7.05]
[1757588890025,0.03001241,225.11,225.1,7.05]
[1757588890626,6.95,225.22,225.11,7.05]
[1757588890823,9.68469494,225.22,225.13,7.05]
[1757588891829,9.68469494,225.22,225.15,0.02797079]
[1757588892422,6.95,225.17,225.15,0.02797079]
[1757588892828,1.7502289,225.18,225.15,0.02797079]
[1757588893121,42.7,225.23,225.15,0.02797079]
[1757588893421,6.95,225.16,225.15,0.02797079]
[1757588894229,8.7002289,225.19,225.15,7.07797079]
[1757588894431,6.95,225.18,225.15,7.07797079]
[1757588894937,6.95,225.18,225.15,0.02797079]
[1757588895635,1.7502289,225.19,225.15,0.02797079]
[1757588895838,6.95,225.18,225.15,0.02797079]
[1757588896333,1.7502289,225.19,225.15,0.02797079]
[1757588896530,6.95,225.18,225.15,0.02797079]
[1757588897833,1.7502289,225.19,225.15,0.02797079]
[1757588898434,6.95,225.18,225.15,0.02797079]
[1757588898937,1.7502289,225.19,225.15,0.02797079]
[1757588899437,110.6,225.18,225.15,0.02797079]
[1757588899631,6.95,225.17,225.15,0.02797079]
[1757588900041,8.7002289,225.16,225.09,3.72307609]
[1757588900238,8.7002289,225.16,225.08,3.72307609]
[1757588900438,112.3502289,225.15,225.08,3.72307609]
[1757588900638,1.7502289,225.15,225.08,3.72307609]
[1757588900937,1.7502289,225.16,225.09,3.72307609]
[1757588901136,1.7502289,225.16,225.1,7.05]
[1757588903144,1.7502289,225.14,225.08,3.72307609]
[1757588903736,1.7502289,225.14,225.07,3.72307609]
[1757588903939,42.22,225.19,225.06,7.05]
[1757588903940,8.7002289,225.11,225.06,7.05]
[1757588904440,8.7002289,225.11,225.05,10.77307609]
[1757588904647,1.7502289,225.11,225.05,3.72307609]
[1757588904838,1.7502289,225.11,225.06,7.05]
[1757588905139,1.7502289,225.11,225.05,3.72307609]
[1757588905342,1.7502289,225.14,225.06,7.05]
[1757588908844,1.7502289,225.15,225.06,3.72307609]
[1757588909145,1.7502289,225.15,225.07,7.12]
[1757588909639,6.95,225.16,225.07,7.12]
[1757588909944,8.7002289,225.16,225.08,7.12]
[1757588910245,112.3102289,225.18,225.09,10.84307609]
[1757588910445,112.3102289,225.18,225.09,3.72307609]
[1757588910647,112.3102289,225.18,225.1,7.12]
[1757588911043,1.7502289,225.18,225.1,7.12]
[1757588912247,7.21,225.2,225.1,7.12]
[1757588912554,7.21,225.2,225.12,7.12]
[1757588912743,7.21,225.2,225.13,7.12]
[1757588914839,7.21,225.23,225.13,7.12]
[1757588915043,1.7502289,225.22,225.13,7.12]
[1757588917855,7.21,225.23,225.13,7.12]
[1757588918153,7.21,225.23,225.14,7.12]
[1757588918650,7.21,225.23,225.15,7.12]
[1757588918856,0.0280179,225.21,225.16,0.03174105]